[Event "FIDE WCCC Girls-10 2024"]
[Site "Montesilvano"]
[Date "2024.11.25"]
[Round "10.13"]
[White "Li, Wan Qin"]
[Black "Norkulova, Malika"]
[Result "0-1"]
[ECO "D02"]
[WhiteElo "1628"]
[BlackElo "1480"]
[Annotator "NA RC"]
[PlyCount "116"]
[EventDate "2024.11.18"]
[EventType "swiss"]
[EventCountry "ITA"]
[SourceTitle "playchess.com"]
[Source "ChessBase"]
[SourceQuality "1"]
[TimeControl "5400+30"]

1. Nf3 {[%emt 0:00:03]} d5 {[%emt 0:02:53]} 2. d4 {[%emt 0:00:11]} Bg4 {[%emt 0:01:42]} 3. Bf4 {[%emt 0:01:23]} Nf6 {[%emt 0:02:01]} 4. Ne5 {[%emt 0:02:08]} Bf5 {[%emt 0:00:19]} 5. e3 {[%emt 0:01:46]} e6 {[%emt 0:00:41]} 6. Bd3 {[%emt 0:02:23]} Bxd3 {[%emt 0:00:32]} 7. cxd3 {[%emt 0:01:13]} c6 {[%emt 0:02:40]} 8. O-O {[%emt 0:01:19]} Bd6 {[%emt 0:00:13]} 9. Nc3 {[%emt 0:00:42]} O-O {[%emt 0:00:12]} 10. Qf3 {[%emt 0:04:27]} Qc7 {[%emt 0:01:14]} 11. e4 {[%emt 0:04:23]} a6 {[%emt 0:10:35]} 12. Rac1 {[%emt 0:09:19]} Rd8 {[%emt 0:03:35]} 13. g4 {[%emt 0:03:00]} Qe7 {[%emt 0:18:06]} 14. Rce1 {[%emt 0:07:51]} Bc7 {[%emt 0:04:14]} 15. g5 {[%emt 0:10:00]} Ne8 {[%emt 0:00:43]} 16. exd5 {[%emt 0:03:29]} cxd5 {[%emt 0:00:20]} 17. Ng4 {[%emt 0:03:25]} Nc6 {[%emt 0:00:43]} 18. Qe3 {[%emt 0:04:33]} Bxf4 {[%emt 0:02:01]} 19. Qxf4 {[%emt 0:00:10]} Qb4 {[%emt 0:00:24]} 20. Ne2 {[%emt 0:01:53]} Qxb2 {[%emt 0:01:10]} 21. h4 {[%emt 0:03:05]} Nd6 {[%emt 0:04:24]} 22. Ne3 {[%emt 0:06:50]} Nb5 {[%emt 0:00:37]} 23. Nd1 {[%emt 0:04:58]} Qxa2 {[%emt 0:04:35]} 24. h5 {[%emt 0:02:52]} Qa3 {[%emt 0:00:09]} 25. h6 {[%emt 0:05:47]} Qxd3 {[%emt 0:00:12]} 26. hxg7 {[%emt 0:00:07]} Nbxd4 {[%emt 0:00:15]} 27. Ne3 {[%emt 0:09:27]} Qe4 {[%emt 0:03:40]} 28. Qxe4 {[%emt 0:02:25]} dxe4 {[%emt 0:00:08]} 29. Nxd4 {[%emt 0:00:07]} Nxd4 {[%emt 0:00:05]} 30. Rb1 {[%emt 0:00:14]} b5 {[%emt 0:01:00]} 31. Kg2 {[%emt 0:01:42]} Kxg7 {[%emt 0:00:09]} 32. Rfd1 {[%emt 0:01:04]} Nf3 {[%emt 0:00:19]} 33. Rxd8 {[%emt 0:02:14]} Rxd8 {[%emt 0:00:12]} 34. Ra1 {[%emt 0:00:11]} Ra8 {[%emt 0:00:05]} 35. Nc2 {[%emt 0:00:43]} a5 {[%emt 0:00:29]} 36. Na3 {[%emt 0:00:27]} b4 {[%emt 0:00:08]} 37. Nc4 {[%emt 0:00:07]} b3 {[%emt 0:00:16]} 38. Ra3 {[%emt 0:00:21]} a4 {[%emt 0:00:11]} 39. Nb2 {[%emt 0:00:28]} Ne1+ {[%emt 0:00:15]} 40. Kf1 {[%emt 0:00:16]} Nd3 {[%emt 0:00:08]} 41. Rxa4 {[%emt 0:00:25]} Rxa4 {[%emt 0:00:09]} 42. Nxa4 {[%emt 0:00:06]} Kg6 {[%emt 0:00:21]} 43. Ke2 {[%emt 0:00:05]} Kxg5 {[%emt 0:00:07]} 44. Ke3 {[%emt 0:00:05]} h5 {[%emt 0:00:48]} 45. Kxe4 {[%emt 0:00:05]} Nxf2+ {[%emt 0:00:07]} 46. Kf3 {[%emt 0:00:07]} Nd1 {[%emt 0:00:07]} 47. Ke2 {[%emt 0:00:07]} b2 {[%emt 0:00:08]} 48. Nxb2 {[%emt 0:00:14]} Nxb2 {[%emt 0:00:04]} 49. Kf3 {[%emt 0:00:06]} f5 {[%emt 0:00:04]} 50. Kg3 {[%emt 0:00:04]} f4+ {[%emt 0:00:04]} 51. Kf3 {[%emt 0:00:04]} h4 {[%emt 0:00:05]} 52. Ke4 {[%emt 0:00:06]} h3 {[%emt 0:00:05]} 53. Ke5 {[%emt 0:00:03]} h2 {[%emt 0:00:04]} 54. Kxe6 {[%emt 0:00:04]} h1=Q {[%emt 0:43:42]} 55. Kf7 {[%emt 0:00:06]} f3 {[%emt 0:00:00]} 56. Kg7 {[%emt 0:00:03]} Qh5 {[%emt 0:00:00]} 57. Kg8 {[%emt 0:00:04]} Kf6 {[%emt 0:00:00]} 58. Kf8 {[%emt 0:00:03]} Qf7# {[%emt 0:00:00]} 0-1

[Event "FIDE WCCC Girls-10 2024"]
[Site "Montesilvano"]
[Date "2024.11.25"]
[Round "10.14"]
[White "Zhang, Weiai"]
[Black "Nguyen, Lam Vy Le"]
[Result "1-0"]
[ECO "C64"]
[WhiteElo "1488"]
[BlackElo "1728"]
[Annotator "NA RC"]
[PlyCount "187"]
[EventDate "2024.11.18"]
[EventType "swiss"]
[EventCountry "ITA"]
[SourceTitle "playchess.com"]
[Source "ChessBase"]
[SourceQuality "1"]
[TimeControl "5400+30"]

1. e4 {[%emt 0:00:02]} e5 {[%emt 0:00:10]} 2. Nf3 {[%emt 0:00:06]} Nc6 {[%emt 0:00:09]} 3. Bb5 {[%emt 0:00:07]} a6 {[%emt 0:00:07]} 4. Ba4 {[%emt 0:00:06]} Bc5 {[%emt 0:00:12]} 5. O-O {[%emt 0:00:13]} Nge7 {[%emt 0:00:12]} 6. c3 {[%emt 0:00:43]} Ng6 {[%emt 0:01:07]} 7. d4 {[%emt 0:00:51]} Ba7 {[%emt 0:01:03]} 8. Bg5 {[%emt 0:02:03]} f6 {[%emt 0:00:23]} 9. Be3 {[%emt 0:00:10]} O-O {[%emt 0:00:14]} 10. Bb3+ {[%emt 0:02:57]} Kh8 {[%emt 0:00:25]} 11. Nbd2 {[%emt 0:01:25]} Nce7 {[%emt 0:06:45]} 12. d5 {[%emt 0:27:01]} d6 {[%emt 0:08:52]} 13. Re1 {[%emt 0:04:07]} Bxe3 {[%emt 0:05:57]} 14. fxe3 {[%emt 0:05:41]} f5 {[%emt 0:07:47]} 15. Ng5 {[%emt 0:07:29]} h6 {[%emt 0:15:54]} 16. Qh5 {[%emt 0:04:27]} Kg8 {[%emt 0:15:19]} 17. Ne6 {[%emt 0:02:59]} Bxe6 {[%emt 0:00:09]} 18. dxe6 {[%emt 0:00:11]} Qe8 {[%emt 0:03:55]} 19. Rf1 {[%emt 0:07:42]} f4 {[%emt 0:04:46]} 20. exf4 {[%emt 0:03:01]} Nxf4 {[%emt 0:00:35]} 21. Qg4 {[%emt 0:00:55]} Rf6 {[%emt 0:05:00]} 22. g3 {[%emt 0:10:58]} Rg6 {[%emt 0:03:39]} 23. Qh4 {[%emt 0:05:05]} Kh8 {[%emt 0:02:53]} 24. Nf3 {[%emt 0:06:56]} Nc6 {[%emt 0:03:57]} 25. Kh1 {[%emt 0:03:56]} Nxe6 {[%emt 0:01:45]} 26. Qh5 {[%emt 0:01:26]} Rf6 {[%emt 0:01:21]} 27. Qg4 {[%emt 0:00:41]} Na5 {[%emt 0:02:35]} 28. Bxe6 {[%emt 0:00:41]} Qxe6 {[%emt 0:00:17]} 29. Qxe6 {[%emt 0:03:01]} Rxe6 {[%emt 0:09:32]} 30. Nh4 {[%emt 0:00:00]} Rf6 {[%emt 0:00:00]} 31. Rxf6 {[%emt 0:00:00]} gxf6 {[%emt 0:00:00]} 32. Rf1 {[%emt 0:00:00]} Kg7 {[%emt 0:00:00]} 33. Nf5+ {[%emt 0:00:00]} Kg6 {[%emt 0:00:00]} 34. Ne7+ {[%emt 0:00:00]} Kg7 {[%emt 0:00:00]} 35. Nd5 {[%emt 0:00:11]} c6 {[%emt 0:00:00]} 36. Nxf6 {[%emt 0:00:52]} Nc4 {[%emt 0:00:00]} 37. Rf2 {[%emt 0:00:48]} Rf8 {[%emt 0:00:00]} 38. Nh5+ {[%emt 0:01:18]} Kg8 {[%emt 0:00:00]} 39. Re2 {[%emt 0:00:33]} Kh7 {[%emt 0:01:02]} 40. g4 {[%emt 0:00:28]} Rf1+ {[%emt 0:01:20]} 41. Kg2 {[%emt 0:00:12]} Rf8 {[%emt 0:01:48]} 42. Ng3 {[%emt 0:00:25]} Rf6 {[%emt 0:01:02]} 43. h3 {[%emt 0:02:13]} Kg6 {[%emt 0:00:53]} 44. Nf5 {[%emt 0:00:00]} h5 {[%emt 0:00:35]} 45. Kg3 {[%emt 0:00:00]} hxg4 {[%emt 0:00:16]} 46. hxg4 {[%emt 0:00:00]} Rf7 {[%emt 0:00:50]} 47. b3 {[%emt 0:00:00]} Nb6 {[%emt 0:00:08]} 48. Nxd6 {[%emt 0:00:22]} Rd7 {[%emt 0:00:05]} 49. Rd2 {[%emt 0:00:39]} Nc8 {[%emt 0:00:55]} 50. Nc4 {[%emt 0:00:17]} Rxd2 {[%emt 0:00:14]} 51. Nxd2 {[%emt 0:00:05]} Nb6 {[%emt 0:00:15]} 52. Nf3 {[%emt 0:00:09]} Nd7 {[%emt 0:00:06]} 53. Kh4 {[%emt 0:00:34]} Nc5 {[%emt 0:00:28]} 54. Nd2 {[%emt 0:00:50]} b5 {[%emt 0:00:16]} 55. g5 {[%emt 0:00:29]} Nd3 {[%emt 0:01:01]} 56. Kg4 {[%emt 0:01:29]} c5 {[%emt 0:00:39]} 57. Kh4 {[%emt 0:00:50]} a5 {[%emt 0:00:47]} 58. a3 {[%emt 0:00:45]} a4 {[%emt 0:00:39]} 59. b4 {[%emt 0:00:34]} cxb4 {[%emt 0:00:09]} 60. cxb4 {[%emt 0:00:06]} Ne1 {[%emt 0:00:19]} 61. Kg4 {[%emt 0:01:17]} Nd3 {[%emt 0:00:47]} 62. Nf3 {[%emt 0:00:15]} Nf2+ {[%emt 0:00:09]} 63. Kh4 {[%emt 0:00:13]} Nxe4 {[%emt 0:00:18]} 64. Nxe5+ {[%emt 0:00:18]} Kf5 {[%emt 0:00:23]} 65. Nc6 {[%emt 0:00:37]} Nxg5 {[%emt 0:01:02]} 66. Nd4+ {[%emt 0:00:15]} Kf6 {[%emt 0:00:13]} 67. Nxb5 {[%emt 0:00:13]} Ne4 {[%emt 0:00:11]} 68. Kg4 {[%emt 0:00:51]} Ke5 {[%emt 0:00:06]} 69. Kf3 {[%emt 0:00:25]} Kd5 {[%emt 0:00:36]} 70. Ke3 {[%emt 0:00:17]} Ke5 {[%emt 0:00:24]} 71. Kd3 {[%emt 0:00:31]} Nf2+ {[%emt 0:00:56]} 72. Kc4 {[%emt 0:00:12]} Ne4 {[%emt 0:00:06]} 73. Nc3 {[%emt 0:00:16]} Nd2+ {[%emt 0:00:23]} 74. Kd3 {[%emt 0:00:14]} Nb3 {[%emt 0:00:31]} 75. Nxa4 {[%emt 0:00:13]} Kd5 {[%emt 0:00:09]} 76. Kc3 {[%emt 0:00:09]} Nc1 {[%emt 0:00:13]} 77. Kc2 {[%emt 0:00:19]} Ne2 {[%emt 0:00:21]} 78. Nc3+ {[%emt 0:00:05]} Nxc3 {[%emt 0:00:08]} 79. Kxc3 {[%emt 0:00:04]} Kc6 {[%emt 0:00:06]} 80. a4 {[%emt 0:00:04]} Kb6 {[%emt 0:00:05]} 81. Kc4 {[%emt 0:00:05]} Kc6 {[%emt 0:00:08]} 82. a5 {[%emt 0:00:06]} Kc7 {[%emt 0:00:08]} 83. Kc5 {[%emt 0:00:06]} Kb7 {[%emt 0:00:06]} 84. b5 {[%emt 0:00:04]} Ka7 {[%emt 0:00:05]} 85. b6+ {[%emt 0:00:16]} Ka8 {[%emt 0:00:06]} 86. Kc6 {[%emt 0:00:12]} Kb8 {[%emt 0:00:04]} 87. b7 {[%emt 0:00:05]} Ka7 {[%emt 0:00:15]} 88. Kc7 {[%emt 0:00:05]} Ka6 {[%emt 0:00:03]} 89. b8=Q {[%emt 0:00:11]} Kxa5 {[%emt 0:00:06]} 90. Kc6 {[%emt 0:00:05]} Ka4 {[%emt 0:00:03]} 91. Kc5 {[%emt 0:00:05]} Ka3 {[%emt 0:00:05]} 92. Kc4 {[%emt 0:00:04]} Ka2 {[%emt 0:00:05]} 93. Kc3 {[%emt 0:00:02]} Ka1 {[%emt 0:00:10]} 94. Qb2# {[%emt 0:00:04]} 1-0

[Event "FIDE WCCC Girls-10 2024"]
[Site "Montesilvano"]
[Date "2024.11.25"]
[Round "10.15"]
[White "Bayramova, Aya"]
[Black "Rosset, Anna"]
[Result "0-1"]
[ECO "D13"]
[WhiteElo "1634"]
[BlackElo "1814"]
[Annotator "NA RC"]
[PlyCount "116"]
[EventDate "2024.11.18"]
[EventType "swiss"]
[EventCountry "ITA"]
[SourceTitle "playchess.com"]
[Source "ChessBase"]
[SourceQuality "1"]
[TimeControl "5400+30"]

1. d4 {[%emt 0:00:02]} d5 {[%emt 0:00:04]} 2. c4 {[%emt 0:00:25]} c6 {[%emt 0:00:05]} 3. cxd5 {[%emt 0:00:27]} cxd5 {[%emt 0:00:09]} 4. Nc3 {[%emt 0:00:23]} Nf6 {[%emt 1:32:12]} 5. Bf4 {[%emt 0:00:17]} Nc6 {[%emt 0:00:00]} 6. e3 {[%emt 0:00:27]} a6 {[%emt 0:00:00]} 7. Bd3 {[%emt 0:00:37]} e6 {[%emt 0:00:00]} 8. Nf3 {[%emt 0:00:28]} Be7 {[%emt 0:00:00]} 9. Rc1 {[%emt 0:00:46]} O-O {[%emt 0:00:00]} 10. O-O {[%emt 0:00:44]} Bd7 {[%emt 0:00:00]} 11. Ne5 {[%emt 0:16:41]} Rc8 {[%emt 0:00:00]} 12. Qf3 {[%emt 0:03:40]} Nb4 {[%emt 0:00:00]} 13. Bb1 {[%emt 0:00:53]} h6 {[%emt 0:00:00]} 14. g4 {[%emt 0:02:21]} Nh7 {[%emt 0:00:00]} 15. Bxh7+ {[%emt 0:09:59]} Kxh7 {[%emt 0:00:00]} 16. Kh1 {[%emt 0:01:56]} f6 {[%emt 0:00:00]} 17. Nxd7 {[%emt 0:05:41]} Qxd7 {[%emt 0:00:00]} 18. Rcd1 {[%emt 0:00:38]} Rc4 {[%emt 0:00:00]} 19. Kg2 {[%emt 0:02:41]} Qc8 {[%emt 0:00:00]} 20. e4 {[%emt 0:04:34]} e5 {[%emt 0:00:00]} 21. Bg3 {[%emt 0:16:34]} dxe4 {[%emt 0:00:00]} 22. Qxe4+ {[%emt 0:00:42]} Kh8 {[%emt 0:00:00]} 23. Nd5 {[%emt 0:11:15]} Qc6 {[%emt 0:00:00]} 24. Nc3 {[%emt 0:01:40]} Rxc3 {[%emt 0:00:00]} 25. d5 {[%emt 0:00:26]} Qc4 {[%emt 0:00:00]} 26. Qxc4 {[%emt 0:06:49]} Rxc4 {[%emt 0:00:00]} 27. a3 {[%emt 0:00:24]} Nc2 {[%emt 0:00:00]} 28. d6 {[%emt 0:04:31]} Bd8 {[%emt 0:00:00]} 29. Rc1 {[%emt 0:00:33]} Bb6 {[%emt 0:00:00]} 30. b3 {[%emt 0:03:53]} Rc6 {[%emt 0:00:00]} 31. Rfd1 {[%emt 0:00:34]} Nxa3 {[%emt 0:00:00]} 32. Rxc6 {[%emt 0:01:16]} bxc6 {[%emt 0:00:00]} 33. f4 {[%emt 0:02:25]} exf4 {[%emt 0:00:00]} 34. Bxf4 {[%emt 0:00:39]} Nb5 {[%emt 0:00:10]} 35. b4 {[%emt 0:01:25]} Rd8 {[%emt 0:02:58]} 36. Rc1 {[%emt 0:00:47]} Nd4 {[%emt 0:01:14]} 37. Ra1 {[%emt 0:00:38]} Ra8 {[%emt 0:00:36]} 38. Be3 {[%emt 0:00:36]} Nc2 {[%emt 0:07:54]} 39. Bxb6 {[%emt 0:00:35]} Nxa1 {[%emt 0:04:38]} 40. d7 {[%emt 0:00:30]} Nc2 {[%emt 0:00:00]} 41. d8=Q+ {[%emt 0:00:31]} Rxd8 {[%emt 0:00:00]} 42. Bxd8 {[%emt 0:00:32]} Nxb4 {[%emt 0:00:00]} 43. Ba5 {[%emt 0:00:31]} c5 {[%emt 0:00:00]} 44. Kf3 {[%emt 0:00:30]} Nc6 {[%emt 0:00:00]} 45. Bc3 {[%emt 0:00:31]} Ne5+ {[%emt 0:00:00]} 46. Kf4 {[%emt 0:00:29]} Kg8 {[%emt 0:00:37]} 47. h4 {[%emt 0:00:31]} g5+ {[%emt 0:01:27]} 48. hxg5 {[%emt 0:00:25]} hxg5+ {[%emt 0:00:04]} 49. Kf5 {[%emt 0:00:34]} Kf7 {[%emt 0:00:07]} 50. Ba5 {[%emt 0:00:26]} Nc6 {[%emt 0:01:24]} 51. Bc3 {[%emt 0:00:16]} Nd4+ {[%emt 0:00:42]} 52. Ke4 {[%emt 0:00:37]} Ke6 {[%emt 0:00:07]} 53. Bd2 {[%emt 0:00:39]} Nc6 {[%emt 0:00:35]} 54. Bc3 {[%emt 0:00:32]} Ne5 {[%emt 0:00:09]} 55. Ba5 {[%emt 0:00:30]} Nxg4 {[%emt 0:00:20]} 56. Bb6 {[%emt 0:00:32]} f5+ {[%emt 0:00:04]} 57. Kf3 {[%emt 0:00:27]} Ne5+ {[%emt 0:00:05]} 58. Ke3 {[%emt 0:00:10]} Nc4+ {[%emt 0:00:07]} 0-1

[Event "FIDE WCCC Girls-10 2024"]
[Site "Montesilvano"]
[Date "2024.11.25"]
[Round "10.16"]
[White "Afandi, Sadagul"]
[Black "Samhita Pungavanam"]
[Result "0-1"]
[ECO "B13"]
[WhiteElo "1625"]
[BlackElo "1752"]
[Annotator "NA RC"]
[PlyCount "98"]
[EventDate "2024.11.18"]
[EventType "swiss"]
[EventCountry "ITA"]
[SourceTitle "playchess.com"]
[Source "ChessBase"]
[SourceQuality "1"]
[TimeControl "5400+30"]

1. e4 {[%emt 0:00:02]} c6 {[%emt 0:00:25]} 2. d4 {[%emt 0:00:07]} d5 {[%emt 0:01:17]} 3. exd5 {[%emt 0:00:06]} cxd5 {[%emt 0:01:14]} 4. Bd3 {[%emt 0:00:07]} Nc6 {[%emt 0:01:13]} 5. c3 {[%emt 0:00:06]} e5 {[%emt 0:01:59]} 6. dxe5 {[%emt 0:00:43]} Nxe5 {[%emt 0:01:05]} 7. Qe2 {[%emt 0:00:58]} Qe7 {[%emt 0:01:26]} 8. Bc2 {[%emt 0:00:39]} Bg4 {[%emt 0:04:57]} 9. Qe3 {[%emt 0:11:07]} g6 {[%emt 0:09:38]} 10. Ba4+ {[%emt 0:06:28]} Kd8 {[%emt 0:14:10]} 11. Ne2 {[%emt 0:12:49]} Bh6 {[%emt 0:07:18]} 12. f4 {[%emt 0:12:11]} Bxe2 {[%emt 0:08:39]} 13. Kxe2 {[%emt 0:04:48]} Nc4 {[%emt 0:04:36]} 14. Qxe7+ {[%emt 0:02:55]} Nxe7 {[%emt 0:00:31]} 15. g3 {[%emt 0:06:58]} a6 {[%emt 0:08:06]} 16. Nd2 {[%emt 0:06:23]} b5 {[%emt 0:04:35]} 17. Bc2 {[%emt 0:06:26]} Re8 {[%emt 0:02:23]} 18. Kf2 {[%emt 0:03:52]} Nc6 {[%emt 0:07:35]} 19. Nf3 {[%emt 0:06:10]} Kc7 {[%emt 0:00:40]} 20. b3 {[%emt 0:01:33]} Nd6 {[%emt 0:02:33]} 21. Ne5 {[%emt 0:03:41]} Bg7 {[%emt 0:01:09]} 22. Be3 {[%emt 0:05:38]} Nxe5 {[%emt 0:00:45]} 23. fxe5 {[%emt 0:00:29]} Bxe5 {[%emt 0:00:21]} 24. Rad1 {[%emt 0:01:29]} Ne4+ {[%emt 0:01:10]} 25. Bxe4 {[%emt 0:00:13]} dxe4 {[%emt 0:00:01]} 26. Bd4 {[%emt 0:00:41]} f5 {[%emt 0:01:09]} 27. Ke3 {[%emt 0:00:55]} Bxd4+ {[%emt 0:02:28]} 28. Rxd4 {[%emt 0:00:12]} Rad8 {[%emt 0:01:09]} 29. Rc1 {[%emt 0:00:29]} Rxd4 {[%emt 0:00:56]} 30. cxd4+ {[%emt 0:00:05]} Kd7 {[%emt 0:00:07]} 31. h4 {[%emt 0:00:42]} Rc8 {[%emt 0:00:43]} 32. Rc5 {[%emt 0:00:56]} Rxc5 {[%emt 0:04:56]} 33. dxc5 {[%emt 0:00:06]} b4 {[%emt 0:00:09]} 34. Kd4 {[%emt 0:00:34]} Kc6 {[%emt 0:00:45]} 35. Kc4 {[%emt 0:00:22]} a5 {[%emt 0:00:01]} 36. Kd4 {[%emt 0:00:12]} h6 {[%emt 0:00:30]} 37. Kc4 {[%emt 0:00:07]} g5 {[%emt 0:00:13]} 38. hxg5 {[%emt 0:00:08]} hxg5 {[%emt 0:00:04]} 39. Kd4 {[%emt 0:00:11]} g4 {[%emt 0:00:50]} 40. Ke3 {[%emt 0:00:59]} Kxc5 {[%emt 0:00:04]} 41. Ke2 {[%emt 0:00:14]} Kd4 {[%emt 0:00:02]} 42. Ke1 {[%emt 0:00:07]} Ke3 {[%emt 0:00:03]} 43. a4 {[%emt 0:00:13]} bxa3 {[%emt 0:00:07]} 44. b4 {[%emt 0:00:05]} a2 {[%emt 0:00:04]} 45. Kf1 {[%emt 0:00:20]} a1=Q+ {[%emt 0:10:54]} 46. Kg2 {[%emt 0:00:05]} Ke2 {[%emt 0:00:00]} 47. bxa5 {[%emt 0:00:12]} Qf1+ {[%emt 0:00:00]} 48. Kh2 {[%emt 0:00:13]} Kf2 {[%emt 0:00:00]} 49. a6 {[%emt 0:00:08]} Qg2# {[%emt 0:00:00]} 0-1

[Event "FIDE WCCC Girls-10 2024"]
[Site "Montesilvano"]
[Date "2024.11.25"]
[Round "10.17"]
[White "Tu, Tiffany"]
[Black "Foong, Livia"]
[Result "1-0"]
[ECO "B40"]
[WhiteElo "1687"]
[BlackElo "1461"]
[Annotator "NA RC"]
[PlyCount "129"]
[EventDate "2024.11.18"]
[EventType "swiss"]
[EventCountry "ITA"]
[SourceTitle "playchess.com"]
[Source "ChessBase"]
[SourceQuality "1"]
[TimeControl "5400+30"]

1. e4 {[%emt 0:00:02]} e6 {[%emt 0:00:16]} 2. Nf3 {[%emt 0:00:07]} d5 {[%emt 0:00:10]} 3. e5 {[%emt 0:00:05]} c5 {[%emt 0:00:11]} 4. c3 {[%emt 0:00:05]} Nc6 {[%emt 0:00:14]} 5. Na3 {[%emt 0:00:06]} Nge7 {[%emt 0:00:20]} 6. Nc2 {[%emt 0:00:50]} Ng6 {[%emt 0:00:12]} 7. d4 {[%emt 0:00:11]} Be7 {[%emt 0:00:43]} 8. Bd3 {[%emt 0:00:13]} O-O {[%emt 0:00:24]} 9. O-O {[%emt 0:00:27]} Bd7 {[%emt 0:00:19]} 10. Be3 {[%emt 0:03:17]} Qb6 {[%emt 0:01:00]} 11. Qd2 {[%emt 0:02:29]} f6 {[%emt 0:01:38]} 12. exf6 {[%emt 0:34:53]} cxd4 {[%emt 0:00:30]} 13. fxe7 {[%emt 0:00:57]} Rxf3 {[%emt 0:07:06]} 14. gxf3 {[%emt 0:00:58]} dxe3 {[%emt 0:00:32]} 15. fxe3 {[%emt 0:01:36]} Ncxe7 {[%emt 0:02:07]} 16. Kh1 {[%emt 0:03:09]} e5 {[%emt 0:00:31]} 17. Bxg6 {[%emt 0:01:17]} Qxg6 {[%emt 0:00:22]} 18. Rg1 {[%emt 0:01:14]} Qh5 {[%emt 0:00:22]} 19. Qg2 {[%emt 0:01:21]} g6 {[%emt 0:00:28]} 20. f4 {[%emt 0:06:23]} d4 {[%emt 0:00:33]} 21. e4 {[%emt 0:10:17]} exf4 {[%emt 0:00:38]} 22. Nxd4 {[%emt 0:31:33]} Nc6 {[%emt 0:02:45]} 23. Qg5 {[%emt 0:00:00]} Qh3 {[%emt 0:01:22]} 24. Qxf4 {[%emt 0:00:00]} Rf8 {[%emt 0:00:56]} 25. Qg3 {[%emt 0:00:00]} Qh5 {[%emt 0:00:24]} 26. Qg5 {[%emt 0:00:00]} Qh3 {[%emt 0:00:53]} 27. Rg3 {[%emt 0:00:00]} Rf1+ {[%emt 0:01:40]} 28. Rxf1 {[%emt 0:00:00]} Qxf1+ {[%emt 0:00:18]} 29. Rg1 {[%emt 0:00:00]} Qf7 {[%emt 0:00:49]} 30. Qd5 {[%emt 0:00:00]} Qxd5 {[%emt 0:01:30]} 31. exd5 {[%emt 0:04:30]} Nxd4 {[%emt 0:00:38]} 32. cxd4 {[%emt 0:00:00]} Bf5 {[%emt 0:00:22]} 33. Re1 {[%emt 0:00:00]} Kf8 {[%emt 0:00:33]} 34. d6 {[%emt 0:00:00]} Bd7 {[%emt 0:00:14]} 35. d5 {[%emt 0:00:00]} h5 {[%emt 0:01:03]} 36. Kg2 {[%emt 0:00:00]} b5 {[%emt 0:00:27]} 37. b4 {[%emt 0:00:00]} a6 {[%emt 0:00:07]} 38. a3 {[%emt 0:00:00]} Bf5 {[%emt 0:00:16]} 39. Kg3 {[%emt 0:00:00]} Kf7 {[%emt 0:00:12]} 40. Re7+ {[%emt 0:00:00]} Kf6 {[%emt 0:00:28]} 41. h4 {[%emt 0:00:00]} Bg4 {[%emt 0:00:45]} 42. Ra7 {[%emt 0:00:00]} g5 {[%emt 0:00:31]} 43. d7 {[%emt 0:00:00]} gxh4+ {[%emt 0:00:31]} 44. Kxh4 {[%emt 0:00:00]} Ke7 {[%emt 0:00:08]} 45. d6+ {[%emt 0:00:00]} Kd8 {[%emt 0:00:07]} 46. Kg5 {[%emt 0:00:00]} Bd1 {[%emt 0:01:12]} 47. Kf4 {[%emt 0:00:00]} h4 {[%emt 0:00:38]} 48. Ke5 {[%emt 0:00:00]} h3 {[%emt 0:00:29]} 49. Ra8+ {[%emt 0:00:00]} Kxd7 {[%emt 0:00:13]} 50. Rxa6 {[%emt 0:01:35]} Bf3 {[%emt 0:00:40]} 51. Ra7+ {[%emt 0:01:23]} Kd8 {[%emt 0:00:18]} 52. Rh7 {[%emt 0:02:36]} Bg4 {[%emt 0:00:31]} 53. Rh4 {[%emt 0:00:14]} Bc8 {[%emt 0:00:40]} 54. Rh8+ {[%emt 0:00:06]} Kd7 {[%emt 0:00:11]} 55. Rxh3 {[%emt 0:00:14]} Kc6 {[%emt 0:00:05]} 56. Rc3+ {[%emt 0:00:19]} Kd7 {[%emt 0:00:29]} 57. Rxc8 {[%emt 0:00:30]} Kxc8 {[%emt 0:00:06]} 58. Ke6 {[%emt 0:00:08]} Kd8 {[%emt 0:00:56]} 59. d7 {[%emt 0:00:07]} Kc7 {[%emt 0:00:07]} 60. Ke7 {[%emt 0:00:03]} Kc6 {[%emt 0:00:20]} 61. d8=Q {[%emt 0:00:08]} Kb7 {[%emt 0:00:17]} 62. Kd6 {[%emt 0:00:18]} Ka6 {[%emt 0:01:11]} 63. Kc6 {[%emt 0:00:18]} Ka7 {[%emt 0:00:20]} 64. Qc7+ {[%emt 0:00:08]} Ka8 {[%emt 0:00:19]} 65. Qb7# {[%emt 0:00:05]} 1-0